[Event "Goteborg Open 2018"]
[Site "Molnlycke kulturhus, Biblioteksgatan 2, Molnlycke, Sweden"]
[Date "2018.08.19"]
[Round "8.3"]
[White "Vypkhaniuk, Ihor"]
[Black "Nyberg, Ulf"]
[Result "1-0"]
[TimeControl "15 minutes + 5 seconds per move from move one (Round 1 - 4) / 90 minutes + 30 seconds per move from move one (Round 5 - 8)"]
[WhiteTitle "FM"]
[WhiteFideId "14112256"]
[BlackFideId "1705083"]
[WhiteElo "2357"]
[BlackElo "2084"]

1. Nf3 {[%clk 01:30:49]} {[%emt 00:00:09]} d6 {[%clk 01:30:18]} {[%emt
00:00:43]} 2. d4 {[%clk 01:31:08]} {[%emt 00:00:11]} g6 {[%clk 01:30:36]}
{[%emt 00:00:11]} 3. e4 {[%clk 01:30:28]} {[%emt 00:01:10]} Nf6 {[%clk
01:30:47]} {[%emt 00:00:18]} 4. Nc3 {[%clk 01:30:53]} {[%emt 00:00:05]} Bg7
{[%clk 01:31:11]} {[%emt 00:00:06]} 5. Be2 {[%clk 01:31:18]} {[%emt 00:00:06]}
O-O {[%clk 01:31:25]} {[%emt 00:00:17]} 6. O-O {[%clk 01:31:44]} {[%emt
00:00:05]} c5 {[%clk 01:28:56]} {[%emt 00:02:58]} 7. d5 {[%clk 01:29:28]}
{[%emt 00:02:46]} Bg4 {[%clk 01:27:30]} {[%emt 00:01:56]} 8. Bg5 {[%clk
01:26:18]} {[%emt 00:03:40]} Bxf3 {[%clk 01:24:53]} {[%emt 00:03:06]} 9. Bxf3
{[%clk 01:26:39]} {[%emt 00:00:09]} Nbd7 {[%clk 01:24:15]} {[%emt 00:01:09]} 10.
a4 {[%clk 01:24:02]} {[%emt 00:03:08]} Ne8 {[%clk 01:16:38]} {[%emt 00:08:06]}
11. Qd2 {[%clk 01:21:47]} {[%emt 00:02:45]} Nc7 {[%clk 01:14:33]} {[%emt
00:02:35]} 12. Bh6 {[%clk 01:17:26]} {[%emt 00:04:52]} a6 {[%clk 01:12:16]}
{[%emt 00:02:47]} 13. Be2 {[%clk 01:14:26]} {[%emt 00:03:30]} Rb8 {[%clk
01:09:18]} {[%emt 00:03:29]} 14. a5 {[%clk 01:09:59]} {[%emt 00:04:57]} b5
{[%clk 01:08:35]} {[%emt 00:01:13]} 15. axb6 {[%clk 01:10:03]} {[%emt
00:00:26]} Rxb6 {[%clk 01:08:59]} {[%emt 00:00:05]} 16. Bxg7 {[%clk 01:09:12]}
{[%emt 00:01:21]} Kxg7 {[%clk 01:09:16]} {[%emt 00:00:13]} 17. Ra2 {[%clk
01:09:30]} {[%emt 00:00:13]} Re8 {[%clk 00:59:22]} {[%emt 00:10:23]} 18. Rfa1
{[%clk 01:08:27]} {[%emt 00:01:34]} Qb8 {[%clk 00:48:32]} {[%emt 00:11:20]} 19.
Nd1 {[%clk 01:07:35]} {[%emt 00:01:23]} Nf6 {[%clk 00:43:38]} {[%emt 00:05:23]}
20. f3 {[%clk 01:03:20]} {[%emt 00:04:45]} Qb7 {[%clk 00:42:52]} {[%emt
00:01:15]} 21. c3 {[%clk 01:03:09]} {[%emt 00:00:41]} e6 {[%clk 00:40:39]}
{[%emt 00:02:43]} 22. dxe6 {[%clk 01:02:49]} {[%emt 00:00:50]} fxe6 {[%clk
00:38:13]} {[%emt 00:02:56]} 23. Ne3 {[%clk 00:59:56]} {[%emt 00:03:24]} d5
{[%clk 00:37:31]} {[%emt 00:01:11]} 24. e5 {[%clk 00:59:56]} {[%emt 00:00:30]}
Ng8 {[%clk 00:34:01]} {[%emt 00:03:59]} 25. h4 {[%clk 00:56:33]} {[%emt
00:03:54]} Rf8 {[%clk 00:32:21]} {[%emt 00:02:09]} 26. Ng4 {[%clk 00:55:33]}
{[%emt 00:01:30]} c4 {[%clk 00:30:29]} {[%emt 00:02:22]} 27. Kh2 {[%clk
00:51:58]} {[%emt 00:04:06]} Rf5 {[%clk 00:29:43]} {[%emt 00:01:15]} 28. Rf1
{[%clk 00:46:49]} {[%emt 00:05:40]} Qb8 {[%clk 00:28:56]} {[%emt 00:01:17]} 29.
f4 {[%clk 00:45:16]} {[%emt 00:02:03]} Qd8 {[%clk 00:25:29]} {[%emt 00:03:56]}
30. Kh3 {[%clk 00:43:22]} {[%emt 00:02:25]} Rf7 {[%clk 00:25:05]} {[%emt
00:00:54]} 31. Bxc4 {[%clk 00:41:21]} {[%emt 00:02:31]} Rd7 {[%clk 00:24:57]}
{[%emt 00:00:38]} 32. Bd3 {[%clk 00:41:29]} {[%emt 00:00:23]} d4 {[%clk
00:23:40]} {[%emt 00:01:46]} 33. c4 {[%clk 00:41:52]} {[%emt 00:00:07]} Ne8
{[%clk 00:19:52]} {[%emt 00:04:17]} 34. b4 {[%clk 00:40:37]} {[%emt 00:01:46]}
Rdb7 {[%clk 00:19:29]} {[%emt 00:00:52]} 35. Rb1 {[%clk 00:40:11]} {[%emt
00:00:56]} Ne7 {[%clk 00:19:07]} {[%emt 00:00:52]} 36. c5 {[%clk 00:39:41]}
{[%emt 00:01:00]} Rb5 {[%clk 00:16:40]} {[%emt 00:02:57]} 37. Rxa6 {[%clk
00:38:46]} {[%emt 00:01:26]} Nf5 {[%clk 00:16:28]} {[%emt 00:00:41]} 38. Bxf5
{[%clk 00:37:54]} {[%emt 00:01:23]} gxf5 {[%clk 00:16:31]} {[%emt 00:00:26]} 39.
Nh2 {[%clk 00:37:10]} {[%emt 00:01:14]} Rxc5 {[%clk 00:16:17]} {[%emt
00:00:45]} 40. bxc5 {[%clk 00:37:01]} {[%emt 00:00:40]} Rxb1 {[%clk 00:16:20]}
{[%emt 00:00:26]} 41. Rxe6 {[%clk 00:36:53]} {[%emt 00:00:38]} Rb3+ {[%clk
00:14:44]} {[%emt 00:02:06]} 42. Nf3 {[%clk 00:37:01]} {[%emt 00:00:23]} Qd7
{[%clk 00:10:50]} {[%emt 00:04:24]} 43. Rb6 {[%clk 00:36:40]} {[%emt 00:00:50]}
Rc3 {[%clk 00:08:27]} {[%emt 00:02:53]} 44. Rb4 {[%clk 00:35:14]} {[%emt
00:01:56]} 1-0

[Event "Goteborg Open 2018"]
[Site "Molnlycke kulturhus, Biblioteksgatan 2, Molnlycke, Sweden"]
[Date "2018.08.19"]
[Round "8.4"]
[White "Lundstrom, Mattias"]
[Black "Al Waeli, Laith"]
[Result "1-0"]
[TimeControl "15 minutes + 5 seconds per move from move one (Round 1 - 4) / 90 minutes + 30 seconds per move from move one (Round 5 - 8)"]
[BlackTitle "FM"]
[WhiteFideId "1703536"]
[BlackFideId "4801059"]
[WhiteElo "2163"]
[BlackElo "2084"]

1. e4 {[%clk 01:30:55]} {[%emt 00:00:04]} e6 {[%clk 01:25:56]} {[%emt
00:05:04]} 2. d4 {[%clk 01:31:10]} {[%emt 00:00:15]} d5 {[%clk 01:26:15]}
{[%emt 00:00:11]} 3. Nd2 {[%clk 01:31:36]} {[%emt 00:00:05]} c5 {[%clk
01:25:48]} {[%emt 00:00:56]} 4. exd5 {[%clk 01:31:45]} {[%emt 00:00:21]} exd5
{[%clk 01:25:59]} {[%emt 00:00:20]} 5. Ngf3 {[%clk 01:31:44]} {[%emt 00:00:31]}
a6 {[%clk 01:26:14]} {[%emt 00:00:15]} 6. dxc5 {[%clk 01:28:56]} {[%emt
00:03:18]} Bxc5 {[%clk 01:26:27]} {[%emt 00:00:18]} 7. h3 {[%clk 01:29:11]}
{[%emt 00:00:15]} Nf6 {[%clk 01:22:36]} {[%emt 00:04:20]} 8. Nb3 {[%clk
01:28:59]} {[%emt 00:00:44]} Bb6 {[%clk 01:22:59]} {[%emt 00:00:07]} 9. Bd3
{[%clk 01:28:03]} {[%emt 00:01:26]} O-O {[%clk 01:22:11]} {[%emt 00:01:17]} 10.
O-O {[%clk 01:28:24]} {[%emt 00:00:09]} Nc6 {[%clk 01:22:35]} {[%emt 00:00:06]}
11. c3 {[%clk 01:26:33]} {[%emt 00:02:21]} Ne4 {[%clk 01:22:21]} {[%emt
00:00:44]} 12. Bf4 {[%clk 01:26:22]} {[%emt 00:00:41]} Qf6 {[%clk 01:20:15]}
{[%emt 00:02:36]} 13. Bh2 {[%clk 01:24:17]} {[%emt 00:02:35]} Re8 {[%clk
01:11:30]} {[%emt 00:09:15]} 14. Bc2 {[%clk 01:22:13]} {[%emt 00:02:35]} Bf5
{[%clk 01:07:17]} {[%emt 00:04:42]} 15. Nbd4 {[%clk 01:18:41]} {[%emt
00:04:03]} Nxd4 {[%clk 00:59:27]} {[%emt 00:08:20]} 16. Nxd4 {[%clk 01:18:54]}
{[%emt 00:00:16]} Bd7 {[%clk 00:53:10]} {[%emt 00:06:48]} 17. f3 {[%clk
01:14:19]} {[%emt 00:05:05]} Nd6 {[%clk 00:45:37]} {[%emt 00:08:03]} 18. Kh1
{[%clk 01:12:05]} {[%emt 00:02:44]} Nc4 {[%clk 00:44:32]} {[%emt 00:01:35]} 19.
Rf2 {[%clk 01:05:38]} {[%emt 00:06:57]} Rac8 {[%clk 00:33:24]} {[%emt
00:11:38]} 20. Bb3 {[%clk 01:00:02]} {[%emt 00:06:06]} Qh4 {[%clk 00:30:17]}
{[%emt 00:03:37]} 21. Re2 {[%clk 00:54:05]} {[%emt 00:06:27]} Rxe2 {[%clk
00:28:48]} {[%emt 00:01:59]} 22. Nxe2 {[%clk 00:54:17]} {[%emt 00:00:17]} Ne3
{[%clk 00:27:13]} {[%emt 00:02:06]} 23. Qe1 {[%clk 00:54:10]} {[%emt 00:00:35]}
Nxg2 {[%clk 00:24:09]} {[%emt 00:03:34]} 24. Qxh4 {[%clk 00:54:28]} {[%emt
00:00:12]} Nxh4 {[%clk 00:24:35]} {[%emt 00:00:04]} 25. Bxd5 {[%clk 00:54:37]}
{[%emt 00:00:21]} Re8 {[%clk 00:20:18]} {[%emt 00:04:48]} 26. Ng1 {[%clk
00:43:44]} {[%emt 00:11:23]} Bc6 {[%clk 00:16:02]} {[%emt 00:04:46]} 27. Bxc6
{[%clk 00:42:28]} {[%emt 00:01:46]} bxc6 {[%clk 00:16:30]} {[%emt 00:00:02]} 28.
Bg3 {[%clk 00:38:23]} {[%emt 00:04:35]} Nf5 {[%clk 00:15:38]} {[%emt 00:01:22]}
29. Bf4 {[%clk 00:38:00]} {[%emt 00:00:52]} h6 {[%clk 00:15:44]} {[%emt
00:00:25]} 30. Rd1 {[%clk 00:34:48]} {[%emt 00:03:41]} g5 {[%clk 00:16:05]}
{[%emt 00:00:10]} 31. Bc1 {[%clk 00:32:44]} {[%emt 00:02:34]} Nh4 {[%clk
00:14:45]} {[%emt 00:01:50]} 32. f4 {[%clk 00:32:24]} {[%emt 00:00:50]} f6
{[%clk 00:14:13]} {[%emt 00:01:04]} 33. fxg5 {[%clk 00:31:17]} {[%emt
00:01:36]} hxg5 {[%clk 00:14:35]} {[%emt 00:00:08]} 34. b3 {[%clk 00:31:19]}
{[%emt 00:00:29]} Kf7 {[%clk 00:13:24]} {[%emt 00:01:41]} 35. c4 {[%clk
00:31:31]} {[%emt 00:00:17]} Kg6 {[%clk 00:13:24]} {[%emt 00:00:31]} 36. Bb2
{[%clk 00:30:57]} {[%emt 00:01:03]} Bc7 {[%clk 00:08:03]} {[%emt 00:05:52]} 37.
Bc3 {[%clk 00:28:42]} {[%emt 00:02:45]} Re3 {[%clk 00:08:12]} {[%emt 00:00:22]}
38. Be1 {[%clk 00:27:28]} {[%emt 00:01:43]} Re4 {[%clk 00:06:21]} {[%emt
00:02:21]} 39. Bxh4 {[%clk 00:27:01]} {[%emt 00:00:56]} Rxh4 {[%clk 00:06:38]}
{[%emt 00:00:14]} 40. Kg2 {[%clk 00:26:23]} {[%emt 00:01:07]} Re4 {[%clk
00:06:33]} {[%emt 00:00:35]} 41. Rd7 {[%clk 00:25:35]} {[%emt 00:01:18]} Bb6
{[%clk 00:06:35]} {[%emt 00:00:29]} 42. Rd2 {[%clk 00:23:39]} {[%emt 00:02:25]}
Bxg1 {[%clk 00:03:58]} {[%emt 00:03:08]} 43. Kxg1 {[%clk 00:24:02]} {[%emt
00:00:07]} a5 {[%clk 00:04:00]} {[%emt 00:00:28]} 44. Kf2 {[%clk 00:23:48]}
{[%emt 00:00:43]} a4 {[%clk 00:03:50]} {[%emt 00:00:41]} 45. Rd6 {[%clk
00:20:51]} {[%emt 00:03:26]} axb3 {[%clk 00:03:20]} {[%emt 00:01:01]} 46. axb3
{[%clk 00:21:11]} {[%emt 00:00:10]} c5 {[%clk 00:02:38]} {[%emt 00:01:12]} 47.
Kf3 {[%clk 00:19:30]} {[%emt 00:02:12]} Rf4+ {[%clk 00:02:40]} {[%emt
00:00:28]} 48. Kg3 {[%clk 00:19:40]} {[%emt 00:00:19]} Kf5 {[%clk 00:02:05]}
{[%emt 00:01:05]} 49. Rd5+ {[%clk 00:19:49]} {[%emt 00:00:21]} Ke4 {[%clk
00:02:29]} {[%emt 00:00:06]} 50. Rxc5 {[%clk 00:20:12]} {[%emt 00:00:07]} Rf3+
{[%clk 00:02:54]} {[%emt 00:00:05]} 51. Kg2 {[%clk 00:20:38]} {[%emt 00:00:04]}
Rxb3 {[%clk 00:03:09]} {[%emt 00:00:16]} 52. Rc8 {[%clk 00:20:19]} {[%emt
00:00:48]} f5 {[%clk 00:03:25]} {[%emt 00:00:15]} 53. c5 {[%clk 00:19:46]}
{[%emt 00:01:04]} Rb2+ {[%clk 00:03:53]} {[%emt 00:00:02]} 54. Kg1 {[%clk
00:19:19]} {[%emt 00:00:56]} Rc2 {[%clk 00:04:15]} {[%emt 00:00:08]} 55. c6
{[%clk 00:16:27]} {[%emt 00:03:22]} Kf3 {[%clk 00:03:18]} {[%emt 00:01:26]} 56.
c7 {[%clk 00:16:43]} {[%emt 00:00:14]} Rc1+ {[%clk 00:02:05]} {[%emt 00:01:44]}
57. Kh2 {[%clk 00:17:11]} {[%emt 00:00:02]} Rc2+ {[%clk 00:02:34]} {[%emt
00:00:02]} 58. Kg1 {[%clk 00:17:32]} {[%emt 00:00:08]} Kg3 {[%clk 00:00:53]}
{[%emt 00:02:11]} 59. Kf1 {[%clk 00:17:56]} {[%emt 00:00:06]} f4 {[%clk
00:01:15]} {[%emt 00:00:09]} 60. Rg8 {[%clk 00:16:23]} {[%emt 00:02:02]} Rxc7
{[%clk 00:00:36]} {[%emt 00:01:10]} 61. Rxg5+ {[%clk 00:16:47]} {[%emt
00:00:05]} Kf3 {[%clk 00:01:03]} {[%emt 00:00:03]} 62. Kg1 {[%clk 00:15:57]}
{[%emt 00:01:19]} Rc1+ {[%clk 00:01:07]} {[%emt 00:00:27]} 63. Kh2 {[%clk
00:16:22]} {[%emt 00:00:05]} Rc2+ {[%clk 00:01:34]} {[%emt 00:00:03]} 64. Kg1
{[%clk 00:16:37]} {[%emt 00:00:15]} Rc1+ {[%clk 00:01:35]} {[%emt 00:00:30]} 65.
Kh2 {[%clk 00:17:01]} {[%emt 00:00:05]} Kf2 {[%clk 00:01:59]} {[%emt 00:00:07]}
66. Rg8 {[%clk 00:16:16]} {[%emt 00:01:15]} f3 {[%clk 00:02:18]} {[%emt
00:00:12]} 67. Re8 {[%clk 00:16:31]} {[%emt 00:00:14]} Re1 {[%clk 00:02:24]}
{[%emt 00:00:24]} 68. Ra8 {[%clk 00:16:49]} {[%emt 00:00:12]} Re2 {[%clk
00:02:45]} {[%emt 00:00:09]} 69. Ra1 {[%clk 00:16:14]} {[%emt 00:01:05]} Re1
{[%clk 00:03:01]} {[%emt 00:00:14]} 70. Ra2+ {[%clk 00:16:13]} {[%emt
00:00:31]} Re2 {[%clk 00:03:29]} {[%emt 00:00:03]} 71. Ra1 {[%clk 00:16:36]}
{[%emt 00:00:06]} Re1 {[%clk 00:03:02]} {[%emt 00:00:57]} 72. Ra2+ {[%clk
00:16:33]} {[%emt 00:00:33]} Kf1 {[%clk 00:02:48]} {[%emt 00:00:44]} 73. Kg3
{[%clk 00:16:39]} {[%emt 00:00:23]} Re3 {[%clk 00:02:55]} {[%emt 00:00:23]} 74.
Rf2+ {[%clk 00:17:02]} {[%emt 00:00:06]} Kg1 {[%clk 00:01:43]} {[%emt
00:01:42]} 75. Rxf3 {[%clk 00:17:27]} {[%emt 00:00:06]} Re2 {[%clk 00:01:35]}
{[%emt 00:00:39]} 76. h4 {[%clk 00:17:39]} {[%emt 00:00:17]} Rg2+ {[%clk
00:01:57]} {[%emt 00:00:09]} 77. Kh3 {[%clk 00:18:02]} {[%emt 00:00:06]} Rh2+
{[%clk 00:01:46]} {[%emt 00:00:40]} 78. Kg4 {[%clk 00:18:26]} {[%emt 00:00:06]}
Kg2 {[%clk 00:02:08]} {[%emt 00:00:09]} 79. Rf6 {[%clk 00:18:22]} {[%emt
00:00:33]} 1-0

[Event "Goteborg Open 2018"]
[Site "Molnlycke kulturhus, Biblioteksgatan 2, Molnlycke, Sweden"]
[Date "2018.08.19"]
[Round "8.5"]
[White "Maddens, Martijn"]
[Black "Nilsson, Eskil"]
[Result "1-0"]
[TimeControl "15 minutes + 5 seconds per move from move one (Round 1 - 4) / 90 minutes + 30 seconds per move from move one (Round 5 - 8)"]
[WhiteTitle "CM"]
[WhiteFideId "206962"]
[BlackFideId "1716220"]
[WhiteElo "2141"]
[BlackElo "1928"]

1. e4 {[%clk 01:29:25]} {[%emt 00:01:34]} c5 {[%clk 01:30:48]} {[%emt
00:00:12]} 2. c3 {[%clk 01:29:46]} {[%emt 00:00:10]} Nf6 {[%clk 01:31:00]}
{[%emt 00:00:18]} 3. e5 {[%clk 01:30:10]} {[%emt 00:00:07]} Nd5 {[%clk
01:31:23]} {[%emt 00:00:05]} 4. d4 {[%clk 01:30:39]} {[%emt 00:00:03]} cxd4
{[%clk 01:30:53]} {[%emt 00:01:00]} 5. cxd4 {[%clk 01:31:03]} {[%emt 00:00:06]}
d6 {[%clk 01:29:50]} {[%emt 00:01:33]} 6. Nf3 {[%clk 01:30:45]} {[%emt
00:00:47]} Nc6 {[%clk 01:29:50]} {[%emt 00:00:30]} 7. Bc4 {[%clk 01:31:08]}
{[%emt 00:00:08]} Nb6 {[%clk 01:30:00]} {[%emt 00:00:20]} 8. Bb3 {[%clk
01:31:33]} {[%emt 00:00:04]} dxe5 {[%clk 01:29:19]} {[%emt 00:01:11]} 9. d5
{[%clk 01:31:58]} {[%emt 00:00:05]} Na5 {[%clk 01:29:03]} {[%emt 00:00:46]} 10.
Nc3 {[%clk 01:32:24]} {[%emt 00:00:04]} Nxb3 {[%clk 01:28:27]} {[%emt
00:01:07]} 11. Qxb3 {[%clk 01:32:06]} {[%emt 00:00:48]} g6 {[%clk 01:22:06]}
{[%emt 00:06:51]} 12. Nxe5 {[%clk 01:32:15]} {[%emt 00:00:21]} Bg7 {[%clk
01:21:36]} {[%emt 00:01:00]} 13. Bf4 {[%clk 01:32:19]} {[%emt 00:00:26]} O-O
{[%clk 01:16:57]} {[%emt 00:05:08]} 14. O-O {[%clk 01:31:58]} {[%emt 00:00:52]}
e6 {[%clk 01:06:01]} {[%emt 00:11:26]} 15. d6 {[%clk 01:28:34]} {[%emt
00:03:54]} Qxd6 {[%clk 01:03:38]} {[%emt 00:02:52]} 16. Rfe1 {[%clk 01:18:12]}
{[%emt 00:10:51]} Qe7 {[%clk 00:55:22]} {[%emt 00:08:46]} 17. Rad1 {[%clk
01:17:21]} {[%emt 00:01:23]} Rd8 {[%clk 00:44:15]} {[%emt 00:11:36]} 18. a4
{[%clk 01:15:15]} {[%emt 00:02:36]} Nd5 {[%clk 00:36:19]} {[%emt 00:08:26]} 19.
Nxd5 {[%clk 01:14:06]} {[%emt 00:01:39]} Rxd5 {[%clk 00:36:27]} {[%emt
00:00:23]} 20. Nxg6 {[%clk 01:14:21]} {[%emt 00:00:15]} hxg6 {[%clk 00:19:23]}
{[%emt 00:17:34]} 21. Qxd5 {[%clk 01:13:50]} {[%emt 00:01:01]} Bxb2 {[%clk
00:18:22]} {[%emt 00:01:31]} 22. Qf3 {[%clk 01:05:21]} {[%emt 00:08:59]} f6
{[%clk 00:13:47]} {[%emt 00:05:05]} 23. Bd6 {[%clk 00:56:54]} {[%emt 00:08:58]}
Qg7 {[%clk 00:13:19]} {[%emt 00:00:57]} 24. Re2 {[%clk 00:54:16]} {[%emt
00:03:09]} f5 {[%clk 00:13:37]} {[%emt 00:00:11]} 25. Rc2 {[%clk 00:54:43]}
{[%emt 00:00:04]} Qf6 {[%clk 00:10:39]} {[%emt 00:03:27]} 26. Rc7 {[%clk
00:51:36]} {[%emt 00:03:37]} e5 {[%clk 00:10:32]} {[%emt 00:00:37]} 27. Qh3
{[%clk 00:51:13]} {[%emt 00:00:53]} 1-0

[Event "Goteborg Open 2018"]
[Site "Molnlycke kulturhus, Biblioteksgatan 2, Molnlycke, Sweden"]
[Date "2018.08.19"]
[Round "8.6"]
[White "Eriksson, Kristian"]
[Black "Bengtsson, Tage"]
[Result "1/2-1/2"]
[TimeControl "15 minutes + 5 seconds per move from move one (Round 1 - 4) / 90 minutes + 30 seconds per move from move one (Round 5 - 8)"]
[WhiteFideId "1705172"]
[BlackFideId "1713850"]
[WhiteElo "2097"]
[BlackElo "2001"]

1. e4 {[%clk 01:30:55]} {[%emt 00:00:04]} c5 {[%clk 01:30:56]} {[%emt
00:00:05]} 2. Nc3 {[%clk 01:31:07]} {[%emt 00:00:18]} Nc6 {[%clk 01:31:21]}
{[%emt 00:00:05]} 3. f4 {[%clk 01:31:10]} {[%emt 00:00:26]} e6 {[%clk
01:30:07]} {[%emt 00:01:44]} 4. Nf3 {[%clk 01:30:00]} {[%emt 00:01:40]} d5
{[%clk 01:29:02]} {[%emt 00:01:36]} 5. Bb5 {[%clk 01:30:23]} {[%emt 00:00:06]}
dxe4 {[%clk 01:28:17]} {[%emt 00:01:16]} 6. Nxe4 {[%clk 01:28:41]} {[%emt
00:02:11]} Nf6 {[%clk 01:25:55]} {[%emt 00:02:53]} 7. Bxc6+ {[%clk 01:23:43]}
{[%emt 00:05:29]} bxc6 {[%clk 01:26:23]} {[%emt 00:00:02]} 8. Qe2 {[%clk
01:21:44]} {[%emt 00:02:27]} Nxe4 {[%clk 01:22:55]} {[%emt 00:04:00]} 9. Qxe4
{[%clk 01:22:03]} {[%emt 00:00:10]} Qd5 {[%clk 01:23:18]} {[%emt 00:00:06]} 10.
d3 {[%clk 01:21:39]} {[%emt 00:00:54]} Qxe4+ {[%clk 01:22:44]} {[%emt
00:01:05]} 1/2-1/2